[Event "Mitropa Cup Open 2019"]
[Site "Radenci"]
[Date "2019.05.31"]
[Round "5.20"]
[White "Subelj, Jan"]
[Black "Stijve, Theo"]
[Result "0-1"]
[ECO "B31"]
[WhiteElo "2407"]
[BlackElo "2310"]
[Annotator "ChessBase"]
[PlyCount "160"]
[EventDate "2019.05.27"]
[EventType "team-tourn"]
[EventCountry "SLO"]
[SourceTitle "playchess.com"]
[Source "ChessBase"]
[SourceQuality "1"]
[WhiteTeam "Slovenia"]
[BlackTeam "Switzerland"]
[WhiteTeamCountry "SLO"]
[BlackTeamCountry "SUI"]
[TimeControl "40/5400+30:1800+30"]

1. e4 {[%emt 0:00:00]} c5 {[%emt 0:00:10]} 2. Nf3 {[%emt 0:00:12]} Nc6 {[%emt 0:00:10]} 3. Bb5 {[%emt 0:00:39]} g6 {[%emt 0:00:10]} 4. O-O {[%emt 0:01:46]} Bg7 {[%emt 0:00:10]} 5. Re1 {[%emt 0:01:57]} e5 {[%emt 0:01:00]} 6. Bxc6 {[%emt 0:01:25]} dxc6 {[%emt 0:00:54]} 7. a3 {[%emt 0:03:45]} c4 {[%emt 0:09:41]} 8. a4 {[%emt 0:15:44]} Be6 {[%emt 0:10:15]} 9. Qe2 {[%emt 0:00:19]} Rb8 {[%emt 0:03:26]} 10. Na3 {[%emt 0:01:19]} b5 {[%emt 0:00:24]} 11. axb5 {[%emt 0:00:56]} cxb5 {[%emt 0:00:20]} 12. b3 {[%emt 0:00:17]} cxb3 {[%emt 0:07:43]} 13. cxb3 {[%emt 0:04:16]} Qd7 {[%emt 0:08:50]} 14. Bb2 {[%emt 0:02:53]} Bg4 {[%emt 0:00:29]} 15. Rac1 {[%emt 0:03:53]} Ne7 {[%emt 0:03:02]} 16. Rc5 {[%emt 0:00:27]} O-O {[%emt 0:03:56]} 17. Nxb5 {[%emt 0:22:18]} a6 {[%emt 0:03:36]} 18. Nc3 {[%emt 0:00:17]} Rxb3 {[%emt 0:01:59]} 19. Ba1 {[%emt 0:00:28]} Rc8 {[%emt 0:08:14]} 20. Ra5 {[%emt 0:02:25]} Bxf3 {[%emt 0:05:57]} 21. gxf3 {[%emt 0:00:19]} Nc6 {[%emt 0:02:13]} 22. Rd5 {[%emt 0:00:26]} Qh3 {[%emt 0:04:01]} 23. Qf1 {[%emt 0:06:33]} Qxf3 {[%emt 0:05:53]} 24. Re3 {[%emt 0:00:10]} Qg4+ {[%emt 0:01:37]} 25. Rg3 {[%emt 0:00:05]} Qh4 {[%emt 0:01:50]} 26. Qxa6 {[%emt 0:00:58]} Rbb8 {[%emt 0:00:59]} 27. Qf1 {[%emt 0:03:23]} Nd4 {[%emt 0:01:14]} 28. Qd3 {[%emt 0:11:13]} Qe7 {[%emt 0:05:42]} 29. Kh1 {[%emt 0:01:52]} Rb3 {[%emt 0:03:55]} 30. Rg1 {[%emt 0:02:12]} Qf6 {[%emt 0:02:21]} 31. Rf1 {[%emt 0:02:37]} Bh6 {[%emt 0:02:29]} 32. Qh3 {[%emt 0:03:23]} Rcb8 {[%emt 0:01:18]} 33. Qxh6 {[%emt 0:04:24]} Qf3+ {[%emt 0:00:09]} 34. Kg1 {[%emt 0:00:00]} Qg4+ {[%emt 0:00:07]} 35. Kh1 {[%emt 0:00:08]} Qf3+ {[%emt 0:00:05]} 36. Kg1 {[%emt 0:00:04]} Rxc3 {[%emt 0:01:38]} 37. Rxd4 {[%emt 0:00:05]} Qg4+ {[%emt 0:00:06]} 38. Kh1 {[%emt 0:00:04]} Qf3+ {[%emt 0:00:07]} 39. Kg1 {[%emt 0:00:01]} Qg4+ {[%emt 0:00:10]} 40. Kh1 {[%emt 0:00:00]} Rh3 {[%emt 0:00:00]} 41. f3 {[%emt 0:00:06]} Rxh6 {[%emt 0:08:03]} 42. fxg4 {[%emt 0:00:08]} exd4 {[%emt 0:00:06]} 43. Bxd4 {[%emt 0:00:04]} Rb4 {[%emt 0:05:47]} 44. Bf6 {[%emt 0:04:44]} Rh3 {[%emt 0:06:04]} 45. Rc1 {[%emt 0:01:44]} Rb8 {[%emt 0:00:49]} 46. d4 {[%emt 0:00:13]} Rhb3 {[%emt 0:04:20]} 47. Kg2 {[%emt 0:00:48]} Re3 {[%emt 0:05:08]} 48. d5 {[%emt 0:09:51]} Rxe4 {[%emt 0:00:33]} 49. d6 {[%emt 0:00:18]} Re2+ {[%emt 0:03:03]} 50. Kf3 {[%emt 0:00:02]} Rd2 {[%emt 0:00:10]} 51. Be7 {[%emt 0:00:06]} f6 {[%emt 0:01:54]} 52. Ke3 {[%emt 0:04:39]} Rd5 {[%emt 0:00:16]} 53. Ke4 {[%emt 0:01:27]} Re5+ {[%emt 0:00:15]} 54. Kd4 {[%emt 0:00:09]} Kf7 {[%emt 0:00:41]} 55. Rf1 {[%emt 0:00:36]} Re6 {[%emt 0:02:56]} 56. Kc5 {[%emt 0:02:25]} Rb7 {[%emt 0:00:45]} 57. g5 {[%emt 0:00:34]} f5 {[%emt 0:00:32]} 58. Bf6 {[%emt 0:00:06]} Rd7 {[%emt 0:00:33]} 59. Rd1 {[%emt 0:01:06]} Re2 {[%emt 0:00:19]} 60. Kc6 {[%emt 0:01:14]} Ke6 {[%emt 0:00:12]} 61. Be7 {[%emt 0:00:05]} Rc2+ {[%emt 0:00:52]} 62. Kb6 {[%emt 0:00:07]} Re2 {[%emt 0:00:38]} 63. Rf1 {[%emt 0:00:38]} Re4 {[%emt 0:00:34]} 64. Rf3 {[%emt 0:00:55]} Re2 {[%emt 0:00:31]} 65. Rf1 {[%emt 0:01:19]} Rxe7 {[%emt 0:00:25]} 66. dxe7 {[%emt 0:00:21]} Kxe7 {[%emt 0:00:04]} 67. h4 {[%emt 0:00:21]} Ke6 {[%emt 0:00:42]} 68. Kc5 {[%emt 0:01:03]} Ke5 {[%emt 0:00:12]} 69. Kc4 {[%emt 0:00:18]} Re4+ {[%emt 0:00:44]} 70. Kd3 {[%emt 0:00:07]} Rxh4 {[%emt 0:00:06]} 71. Ke3 {[%emt 0:00:20]} Re4+ {[%emt 0:00:19]} 72. Kd3 {[%emt 0:00:01]} Rg4 {[%emt 0:00:12]} 73. Rh1 {[%emt 0:00:06]} Rxg5 {[%emt 0:00:09]} 74. Rxh7 {[%emt 0:00:04]} Rg3+ {[%emt 0:00:13]} 75. Ke2 {[%emt 0:00:06]} g5 {[%emt 0:00:05]} 76. Ra7 {[%emt 0:00:10]} Rg2+ {[%emt 0:00:45]} 77. Kf3 {[%emt 0:00:10]} Rd2 {[%emt 0:00:14]} 78. Re7+ {[%emt 0:00:16]} Kf6 {[%emt 0:00:08]} 79. Re3 {[%emt 0:00:06]} g4+ {[%emt 0:00:20]} 80. Kf4 {[%emt 0:00:14]} Rd4+ {[%emt 0:00:06]} 0-1

[Event "Mitropa Cup Open 2019"]
[Site "Radenci"]
[Date "2019.06.01"]
[Round "6.1"]
[White "Mihok, Oliver"]
[Black "Sebenik, Matej"]
[Result "1/2-1/2"]
[ECO "B33"]
[WhiteElo "2541"]
[BlackElo "2522"]
[Annotator "ChessBase"]
[PlyCount "110"]
[EventDate "2019.05.27"]
[EventType "team-tourn"]
[EventCountry "SLO"]
[SourceTitle "playchess.com"]
[Source "ChessBase"]
[SourceQuality "1"]
[WhiteTeam "Hungary"]
[BlackTeam "Slovenia"]
[WhiteTeamCountry "HUN"]
[BlackTeamCountry "SLO"]
[TimeControl "40/5400+30:1800+30"]

1. e4 {[%emt 0:00:00]} c5 {[%emt 0:00:00]} 2. Nf3 {[%emt 0:00:00]} Nc6 {[%emt 0:00:00]} 3. d4 {[%emt 0:00:07]} cxd4 {[%emt 0:00:08]} 4. Nxd4 {[%emt 0:00:04]} Nf6 {[%emt 0:00:16]} 5. Nc3 {[%emt 0:00:07]} e5 {[%emt 0:00:08]} 6. Ndb5 {[%emt 0:00:26]} d6 {[%emt 0:00:09]} 7. Bg5 {[%emt 0:00:07]} a6 {[%emt 0:00:10]} 8. Na3 {[%emt 0:00:05]} b5 {[%emt 0:00:07]} 9. Bxf6 {[%emt 0:01:22]} gxf6 {[%emt 0:00:10]} 10. Nd5 {[%emt 0:00:10]} f5 {[%emt 0:00:15]} 11. Bd3 {[%emt 0:00:19]} Be6 {[%emt 0:00:44]} 12. c3 {[%emt 0:00:15]} Bg7 {[%emt 0:02:59]} 13. Nxb5 {[%emt 0:00:43]} axb5 {[%emt 0:02:15]} 14. Bxb5 {[%emt 0:00:05]} Rc8 {[%emt 0:01:02]} 15. Qa4 {[%emt 0:00:12]} Bd7 {[%emt 0:00:07]} 16. exf5 {[%emt 0:00:21]} O-O {[%emt 0:00:05]} 17. O-O {[%emt 0:08:04]} e4 {[%emt 0:00:09]} 18. Rfe1 {[%emt 0:14:52]} Ne5 {[%emt 0:01:19]} 19. Bxd7 {[%emt 0:05:02]} Nxd7 {[%emt 0:00:09]} 20. Qxe4 {[%emt 0:01:46]} Nf6 {[%emt 0:00:23]} 21. Nxf6+ {[%emt 0:06:59]} Bxf6 {[%emt 0:00:08]} 22. a4 {[%emt 0:03:28]} d5 {[%emt 0:05:42]} 23. Qe2 {[%emt 0:09:12]} Qd7 {[%emt 0:11:47]} 24. Qd3 {[%emt 0:07:16]} Kh8 {[%emt 0:10:00]} 25. a5 {[%emt 0:07:53]} Rb8 {[%emt 0:20:23]} 26. Re2 {[%emt 0:02:55]} Qb5 {[%emt 0:02:06]} 27. Qxb5 {[%emt 0:06:24]} Rxb5 {[%emt 0:00:07]} 28. a6 {[%emt 0:00:52]} Ra8 {[%emt 0:00:24]} 29. g4 {[%emt 0:02:20]} h6 {[%emt 0:15:14]} 30. Rd2 {[%emt 0:08:05]} Ra7 {[%emt 0:02:14]} 31. Ra4 {[%emt 0:03:22]} Kg7 {[%emt 0:04:35]} 32. Kg2 {[%emt 0:00:41]} Rb6 {[%emt 0:00:11]} 33. Ra2 {[%emt 0:05:31]} d4 {[%emt 0:00:32]} 34. cxd4 {[%emt 0:00:15]} Raxa6 {[%emt 0:00:05]} 35. Rxa6 {[%emt 0:00:04]} Rxa6 {[%emt 0:00:05]} 36. Kf3 {[%emt 0:01:21]} Rb6 {[%emt 0:04:08]} 37. Ke4 {[%emt 0:00:34]} Kf8 {[%emt 0:00:16]} 38. f4 {[%emt 0:01:08]} Ke7 {[%emt 0:01:23]} 39. Rg2 {[%emt 0:02:15]} Rb4 {[%emt 0:00:10]} 40. Rd2 {[%emt 0:00:00]} Kd7 {[%emt 0:00:00]} 41. Kd5 {[%emt 0:05:06]} Rb3 {[%emt 0:08:09]} 42. Rg2 {[%emt 0:03:40]} Rb6 {[%emt 0:12:46]} 43. g5 {[%emt 0:04:05]} Rd6+ {[%emt 0:00:14]} 44. Ke4 {[%emt 0:01:51]} Rxd4+ {[%emt 0:12:55]} 45. Ke3 {[%emt 0:01:50]} hxg5 {[%emt 0:00:05]} 46. fxg5 {[%emt 0:00:06]} Be5 {[%emt 0:00:02]} 47. g6 {[%emt 0:02:09]} fxg6 {[%emt 0:00:04]} 48. fxg6 {[%emt 0:00:13]} Bg7 {[%emt 0:00:06]} 49. Rd2 {[%emt 0:08:51]} Rxd2 {[%emt 0:00:06]} 50. Kxd2 {[%emt 0:00:04]} Bxb2 {[%emt 0:00:06]} 51. Ke3 {[%emt 0:00:06]} Ke7 {[%emt 0:00:08]} 52. h4 {[%emt 0:00:06]} Kf6 {[%emt 0:00:08]} 53. h5 {[%emt 0:00:04]} Kg5 {[%emt 0:00:05]} 54. g7 {[%emt 0:00:05]} Bxg7 {[%emt 0:00:04]} 55. h6 {[%emt 0:00:04]} Bxh6 {[%emt 0:00:04]} 1/2-1/2

[Event "Mitropa Cup Open 2019"]
[Site "Radenci"]
[Date "2019.06.01"]
[Round "6.2"]
[White "Markoja, Boris"]
[Black "Nagy, Gabor"]
[Result "1-0"]
[ECO "E71"]
[WhiteElo "2441"]
[BlackElo "2471"]
[Annotator "ChessBase"]
[PlyCount "93"]
[EventDate "2019.05.27"]
[EventType "team-tourn"]
[EventCountry "SLO"]
[SourceTitle "playchess.com"]
[Source "ChessBase"]
[SourceQuality "1"]
[WhiteTeam "Slovenia"]
[BlackTeam "Hungary"]
[WhiteTeamCountry "SLO"]
[BlackTeamCountry "HUN"]
[TimeControl "40/5400+30:1800+30"]

1. c4 {[%emt 0:00:00]} Nf6 {[%emt 0:00:22]} 2. Nc3 {[%emt 0:00:00]} g6 {[%emt 0:00:53]} 3. e4 {[%emt 0:00:41]} d6 {[%emt 0:00:42]} 4. d4 {[%emt 0:00:31]} Bg7 {[%emt 0:00:24]} 5. h3 {[%emt 0:00:25]} O-O {[%emt 0:00:46]} 6. Be3 {[%emt 0:00:13]} e5 {[%emt 0:00:55]} 7. d5 {[%emt 0:00:17]} a5 {[%emt 0:00:13]} 8. g4 {[%emt 0:01:19]} Na6 {[%emt 0:01:13]} 9. Nge2 {[%emt 0:00:43]} Nc5 {[%emt 0:02:59]} 10. Ng3 {[%emt 0:00:46]} Qe7 {[%emt 0:03:01]} 11. Be2 {[%emt 0:04:07]} c6 {[%emt 0:03:22]} 12. h4 {[%emt 0:06:34]} cxd5 {[%emt 0:09:23]} 13. cxd5 {[%emt 0:01:23]} Qd7 {[%emt 0:08:00]} 14. f3 {[%emt 0:02:36]} h5 {[%emt 0:01:06]} 15. gxh5 {[%emt 0:06:01]} Nxh5 {[%emt 0:00:28]} 16. Nxh5 {[%emt 0:00:11]} gxh5 {[%emt 0:00:08]} 17. Qd2 {[%emt 0:01:20]} f5 {[%emt 0:00:48]} 18. O-O-O {[%emt 0:03:23]} Qc7 {[%emt 0:03:35]} 19. Kb1 {[%emt 0:02:12]} f4 {[%emt 0:02:31]} 20. Bf2 {[%emt 0:03:22]} Bd7 {[%emt 0:01:33]} 21. Bb5 {[%emt 0:05:37]} b6 {[%emt 0:10:01]} 22. Bc6 {[%emt 0:08:20]} Bxc6 {[%emt 0:05:53]} 23. dxc6 {[%emt 0:00:24]} Qxc6 {[%emt 0:00:11]} 24. Qxd6 {[%emt 0:00:22]} Qxd6 {[%emt 0:01:31]} 25. Rxd6 {[%emt 0:00:08]} Rad8 {[%emt 0:00:50]} 26. Rxb6 {[%emt 0:09:51]} Nd3 {[%emt 0:02:05]} 27. Rf1 {[%emt 0:00:48]} Rb8 {[%emt 0:02:34]} 28. Nd5 {[%emt 0:02:41]} Nxf2 {[%emt 0:00:53]} 29. Rxb8 {[%emt 0:00:38]} Rxb8 {[%emt 0:00:18]} 30. Rxf2 {[%emt 0:00:05]} Kf7 {[%emt 0:00:25]} 31. Rc2 {[%emt 0:01:01]} Bf8 {[%emt 0:00:24]} 32. Rc7+ {[%emt 0:05:01]} Ke6 {[%emt 0:00:19]} 33. Kc2 {[%emt 0:00:39]} Bd6 {[%emt 0:00:13]} 34. Rh7 {[%emt 0:04:04]} Rc8+ {[%emt 0:00:23]} 35. Kb1 {[%emt 0:01:25]} Bc5 {[%emt 0:01:00]} 36. Rh6+ {[%emt 0:00:54]} Kf7 {[%emt 0:00:11]} 37. Rxh5 {[%emt 0:00:19]} Be3 {[%emt 0:00:13]} 38. Rh7+ {[%emt 0:04:41]} Ke6 {[%emt 0:00:13]} 39. Rh6+ {[%emt 0:00:19]} Kf7 {[%emt 0:00:16]} 40. Rh7+ {[%emt 0:00:00]} Ke6 {[%emt 0:00:00]} 41. Rc7 {[%emt 0:05:18]} Rg8 {[%emt 0:00:24]} 42. Rc6+ {[%emt 0:01:13]} Kf7 {[%emt 0:00:06]} 43. Rf6+ {[%emt 0:00:23]} Ke8 {[%emt 0:00:44]} 44. Re6+ {[%emt 0:01:14]} Kf7 {[%emt 0:00:11]} 45. Re7+ {[%emt 0:00:36]} Kf8 {[%emt 0:00:13]} 46. Rxe5 {[%emt 0:00:21]} Rg2 {[%emt 0:00:40]} 47. Nxf4 {[%emt 0:01:03]} 1-0

[Event "Mitropa Cup Open 2019"]
[Site "Radenci"]
[Date "2019.06.01"]
[Round "6.3"]
[White "Kozak, Adam"]
[Black "Janzelj, Tim"]
[Result "1/2-1/2"]
[ECO "E05"]
[WhiteElo "2458"]
[BlackElo "2384"]
[Annotator "ChessBase"]
[PlyCount "153"]
[EventDate "2019.05.27"]
[EventType "team-tourn"]
[EventCountry "SLO"]
[SourceTitle "playchess.com"]
[Source "ChessBase"]
[SourceQuality "1"]
[WhiteTeam "HUN"]
[BlackTeam "SLO"]
[WhiteTeamCountry "HUN"]
[TimeControl "40/5400+30:1800+30"]

1. Nf3 {[%emt 0:00:00]} d5 {[%emt 0:00:00]} 2. g3 {[%emt 0:00:03]} Nf6 {[%emt 0:00:00]} 3. Bg2 {[%emt 0:00:08]} e6 {[%emt 0:00:00]} 4. O-O {[%emt 0:00:11]} Be7 {[%emt 0:00:07]} 5. c4 {[%emt 0:00:06]} O-O {[%emt 0:00:06]} 6. d4 {[%emt 0:00:05]} dxc4 {[%emt 0:00:05]} 7. Qc2 {[%emt 0:00:07]} a6 {[%emt 0:00:04]} 8. a4 {[%emt 0:00:08]} Bd7 {[%emt 0:00:05]} 9. Qxc4 {[%emt 0:00:06]} Bc6 {[%emt 0:00:03]} 10. Bg5 {[%emt 0:00:08]} Bd5 {[%emt 0:00:09]} 11. Qc2 {[%emt 0:00:06]} Be4 {[%emt 0:00:11]} 12. Qc1 {[%emt 0:00:06]} h6 {[%emt 0:04:29]} 13. Bxf6 {[%emt 0:00:05]} Bxf6 {[%emt 0:00:04]} 14. Rd1 {[%emt 0:00:03]} a5 {[%emt 0:01:10]} 15. Nbd2 {[%emt 0:00:05]} Bh7 {[%emt 0:06:48]} 16. Nb3 {[%emt 0:00:13]} c6 {[%emt 0:00:45]} 17. Qc3 {[%emt 0:14:47]} Nd7 {[%emt 0:08:30]} 18. Ne5 {[%emt 0:02:46]} Nb6 {[%emt 0:28:52]} 19. Nxa5 {[%emt 0:13:48]} Nd5 {[%emt 0:03:03]} 20. Bxd5 {[%emt 0:01:11]} Qxa5 {[%emt 0:00:44]} 21. Bb3 {[%emt 0:07:38]} Qxc3 {[%emt 0:07:09]} 22. bxc3 {[%emt 0:00:08]} Bxe5 {[%emt 0:00:04]} 23. dxe5 {[%emt 0:00:12]} Ra5 {[%emt 0:00:03]} 24. f4 {[%emt 0:02:22]} Rfa8 {[%emt 0:01:00]} 25. Ra2 {[%emt 0:05:52]} Be4 {[%emt 0:13:40]} 26. Kf2 {[%emt 0:08:18]} c5 {[%emt 0:05:04]} 27. Rad2 {[%emt 0:01:02]} Bc6 {[%emt 0:05:25]} 28. Rd8+ {[%emt 0:00:26]} Kh7 {[%emt 0:03:31]} 29. Bc2+ {[%emt 0:07:03]} g6 {[%emt 0:00:03]} 30. Rxa8 {[%emt 0:00:04]} Rxa8 {[%emt 0:00:03]} 31. Ke3 {[%emt 0:00:08]} Kg7 {[%emt 0:00:59]} 32. Rb1 {[%emt 0:07:05]} g5 {[%emt 0:02:02]} 33. Ra1 {[%emt 0:04:53]} Ra5 {[%emt 0:00:21]} 34. c4 {[%emt 0:02:01]} Ra6 {[%emt 0:03:58]} 35. Kd2 {[%emt 0:01:53]} f6 {[%emt 0:02:06]} 36. exf6+ {[%emt 0:03:30]} Kxf6 {[%emt 0:00:01]} 37. Ra3 {[%emt 0:03:25]} gxf4 {[%emt 0:01:24]} 38. gxf4 {[%emt 0:00:03]} e5 {[%emt 0:00:10]} 39. f5 {[%emt 0:12:19]} e4 {[%emt 0:02:39]} 40. Rh3 {[%emt 0:00:00]} Kg5 {[%emt 0:00:00]} 41. Ke3 {[%emt 0:16:02]} Ra8 {[%emt 0:05:49]} 42. Rg3+ {[%emt 0:04:23]} Kxf5 {[%emt 0:00:11]} 43. Rf3+ {[%emt 0:00:01]} Kg5 {[%emt 0:13:04]} 44. Rf4 {[%emt 0:00:39]} Ra5 {[%emt 0:11:23]} 45. Rf8 {[%emt 0:10:00]} Bxa4 {[%emt 0:01:26]} 46. Bxe4 {[%emt 0:00:50]} Bc6 {[%emt 0:00:36]} 47. Bd3 {[%emt 0:00:51]} Kg4 {[%emt 0:00:32]} 48. Rf4+ {[%emt 0:01:21]} Kg5 {[%emt 0:00:34]} 49. h4+ {[%emt 0:01:43]} Kh5 {[%emt 0:00:10]} 50. Rf6 {[%emt 0:04:39]} Ra1 {[%emt 0:01:58]} 51. Rf5+ {[%emt 0:01:03]} Kxh4 {[%emt 0:00:02]} 52. Rxc5 {[%emt 0:00:07]} Kg4 {[%emt 0:00:16]} 53. Be4 {[%emt 0:01:34]} Bxe4 {[%emt 0:03:28]} 54. Kxe4 {[%emt 0:00:01]} Ra8 {[%emt 0:00:27]} 55. Rc7 {[%emt 0:00:59]} Re8+ {[%emt 0:00:08]} 56. Kd5 {[%emt 0:00:29]} Rxe2 {[%emt 0:00:17]} 57. Rxb7 {[%emt 0:00:22]} h5 {[%emt 0:00:20]} 58. c5 {[%emt 0:00:09]} Rd2+ {[%emt 0:01:14]} 59. Ke4 {[%emt 0:00:26]} Re2+ {[%emt 0:00:21]} 60. Kd3 {[%emt 0:00:35]} Re8 {[%emt 0:00:15]} 61. Rg7+ {[%emt 0:00:38]} Kf3 {[%emt 0:00:25]} 62. Rf7+ {[%emt 0:00:08]} Kg3 {[%emt 0:00:12]} 63. Rg7+ {[%emt 0:00:09]} Kf3 {[%emt 0:00:04]} 64. Rh7 {[%emt 0:00:14]} Kg4 {[%emt 0:00:06]} 65. Kd4 {[%emt 0:00:20]} h4 {[%emt 0:00:11]} 66. c6 {[%emt 0:00:19]} h3 {[%emt 0:00:14]} 67. Kd5 {[%emt 0:00:19]} Kg3 {[%emt 0:01:05]} 68. c7 {[%emt 0:00:09]} h2 {[%emt 0:00:17]} 69. Kd6 {[%emt 0:00:19]} Rc8 {[%emt 0:00:16]} 70. Kd7 {[%emt 0:00:07]} Rxc7+ {[%emt 0:00:07]} 71. Kxc7 {[%emt 0:00:04]} Kg2 {[%emt 0:00:04]} 72. Rg7+ {[%emt 0:00:07]} Kf2 {[%emt 0:00:05]} 73. Rf7+ {[%emt 0:00:04]} Kg2 {[%emt 0:00:03]} 74. Rg7+ {[%emt 0:00:07]} Kf2 {[%emt 0:00:06]} 75. Rh7 {[%emt 0:00:02]} Kg2 {[%emt 0:00:05]} 76. Rxh2+ {[%emt 0:00:02]} Kxh2 {[%emt 0:00:05]} 77. Kd6 {[%emt 0:00:16]} 1/2-1/2

[Event "Mitropa Cup Open 2019"]
[Site "Radenci"]
[Date "2019.06.01"]
[Round "6.4"]
[White "Subelj, Jan"]
[Black "Csonka, Balazs"]
[Result "1/2-1/2"]
[ECO "C42"]
[WhiteElo "2407"]
[BlackElo "2466"]
[Annotator "ChessBase"]
[PlyCount "72"]
[EventDate "2019.05.27"]
[EventType "team-tourn"]
[EventCountry "SLO"]
[SourceTitle "playchess.com"]
[Source "ChessBase"]
[SourceQuality "1"]
[WhiteTeam "SLO"]
[BlackTeam "HUN"]
[WhiteTeamCountry "SLO"]
[TimeControl "40/5400+30:1800+30"]

1. e4 {[%emt 0:00:00]} e5 {[%emt 0:00:00]} 2. Nf3 {[%emt 0:00:04]} Nf6 {[%emt 0:00:00]} 3. Nxe5 {[%emt 0:00:32]} d6 {[%emt 0:00:10]} 4. Nf3 {[%emt 0:00:22]} Nxe4 {[%emt 0:00:08]} 5. Qe2 {[%emt 0:01:50]} Qe7 {[%emt 0:00:19]} 6. d3 {[%emt 0:00:26]} Nf6 {[%emt 0:00:22]} 7. Bg5 {[%emt 0:00:12]} Nbd7 {[%emt 0:04:21]} 8. Nc3 {[%emt 0:00:36]} Qxe2+ {[%emt 0:07:44]} 9. Bxe2 {[%emt 0:00:14]} h6 {[%emt 0:00:46]} 10. Bf4 {[%emt 0:23:12]} g6 {[%emt 0:11:11]} 11. O-O-O {[%emt 0:00:51]} Bg7 {[%emt 0:00:23]} 12. Rhe1 {[%emt 0:02:31]} O-O {[%emt 0:00:53]} 13. d4 {[%emt 0:03:52]} Nb6 {[%emt 0:08:43]} 14. h3 {[%emt 0:11:48]} Be6 {[%emt 0:06:48]} 15. Bd3 {[%emt 0:12:34]} Nfd5 {[%emt 0:16:28]} 16. Nxd5 {[%emt 0:02:19]} Bxd5 {[%emt 0:02:35]} 17. Be4 {[%emt 0:00:36]} Bxe4 {[%emt 0:04:02]} 18. Rxe4 {[%emt 0:00:10]} Rfe8 {[%emt 0:00:11]} 19. Rde1 {[%emt 0:01:06]} Rxe4 {[%emt 0:01:14]} 20. Rxe4 {[%emt 0:00:07]} f5 {[%emt 0:00:27]} 21. Re2 {[%emt 0:00:29]} Kf7 {[%emt 0:01:50]} 22. c3 {[%emt 0:00:10]} Nd5 {[%emt 0:02:59]} 23. Bd2 {[%emt 0:00:23]} b5 {[%emt 0:01:05]} 24. Kc2 {[%emt 0:02:58]} a5 {[%emt 0:06:15]} 25. b3 {[%emt 0:09:41]} a4 {[%emt 0:01:15]} 26. c4 {[%emt 0:05:49]} axb3+ {[%emt 0:01:53]} 27. Kxb3 {[%emt 0:00:11]} bxc4+ {[%emt 0:01:07]} 28. Kxc4 {[%emt 0:00:05]} c6 {[%emt 0:00:51]} 29. Kb3 {[%emt 0:00:19]} Rb8+ {[%emt 0:04:12]} 30. Kc2 {[%emt 0:00:07]} Ra8 {[%emt 0:01:32]} 31. Kb3 {[%emt 0:00:06]} Rb8+ {[%emt 0:00:07]} 32. Kc2 {[%emt 0:00:11]} g5 {[%emt 0:02:22]} 33. a4 {[%emt 0:04:13]} Nb6 {[%emt 0:09:27]} 34. a5 {[%emt 0:00:41]} Nc4 {[%emt 0:00:03]} 35. Kd3 {[%emt 0:01:05]} Nb2+ {[%emt 0:00:21]} 36. Kc2 {[%emt 0:00:05]} Nc4 {[%emt 0:00:06]} 1/2-1/2

[Event "Mitropa Cup Open 2019"]
[Site "Radenci"]
[Date "2019.06.01"]
[Round "6.6"]
[White "Pelletier, Yannick"]
[Black "Blohberger, Felix"]
[Result "1/2-1/2"]
[ECO "D38"]
[WhiteElo "2547"]
[BlackElo "2475"]
[Annotator "ChessBase"]
[PlyCount "76"]
[EventDate "2019.05.27"]
[EventType "team-tourn"]
[EventCountry "SLO"]
[SourceTitle "playchess.com"]
[Source "ChessBase"]
[SourceQuality "1"]
[WhiteTeam "SUI"]
[BlackTeam "AUT"]
[BlackTeamCountry "AUT"]
[TimeControl "40/5400+30:1800+30"]

1. d4 {[%emt 0:00:30]} Nf6 {[%emt 0:00:00]} 2. c4 {[%emt 0:00:07]} e6 {[%emt 0:00:00]} 3. Nf3 {[%emt 0:00:32]} d5 {[%emt 0:00:00]} 4. Nc3 {[%emt 0:00:34]} Bb4 {[%emt 0:00:02]} 5. Bg5 {[%emt 0:01:05]} h6 {[%emt 0:00:18]} 6. Bxf6 {[%emt 0:00:14]} Qxf6 {[%emt 0:00:06]} 7. Qa4+ {[%emt 0:00:19]} Nc6 {[%emt 0:00:08]} 8. e3 {[%emt 0:00:12]} O-O {[%emt 0:00:10]} 9. Rc1 {[%emt 0:00:31]} Qg6 {[%emt 0:02:24]} 10. Qc2 {[%emt 0:01:13]} Qxc2 {[%emt 0:00:19]} 11. Rxc2 {[%emt 0:00:03]} Rd8 {[%emt 0:00:06]} 12. a3 {[%emt 0:04:36]} Bf8 {[%emt 0:00:07]} 13. Nb5 {[%emt 0:00:42]} Bd7 {[%emt 0:00:53]} 14. cxd5 {[%emt 0:17:21]} exd5 {[%emt 0:00:21]} 15. Bd3 {[%emt 0:01:59]} Rac8 {[%emt 0:00:17]} 16. Ke2 {[%emt 0:01:52]} a6 {[%emt 0:03:28]} 17. Nc3 {[%emt 0:00:04]} Ne7 {[%emt 0:05:34]} 18. Rhc1 {[%emt 0:03:37]} c5 {[%emt 0:11:42]} 19. dxc5 {[%emt 0:01:41]} Rxc5 {[%emt 0:00:06]} 20. Kd2 {[%emt 0:19:31]} Rdc8 {[%emt 0:03:15]} 21. Nd4 {[%emt 0:08:58]} g6 {[%emt 0:04:58]} 22. b4 {[%emt 0:00:19]} R5c7 {[%emt 0:00:41]} 23. Nce2 {[%emt 0:03:29]} Rxc2+ {[%emt 0:00:59]} 24. Rxc2 {[%emt 0:00:03]} Bg7 {[%emt 0:07:33]} 25. Rxc8+ {[%emt 0:07:40]} Nxc8 {[%emt 0:12:41]} 26. Nb3 {[%emt 0:01:00]} Kf8 {[%emt 0:19:21]} 27. Nc5 {[%emt 0:08:54]} Bc6 {[%emt 0:00:15]} 28. Nd4 {[%emt 0:04:56]} Bxd4 {[%emt 0:00:28]} 29. exd4 {[%emt 0:00:03]} Nd6 {[%emt 0:03:23]} 30. f3 {[%emt 0:03:44]} Ke7 {[%emt 0:06:10]} 31. Kc3 {[%emt 0:00:20]} Bb5 {[%emt 0:01:37]} 32. a4 {[%emt 0:00:44]} Bxd3 {[%emt 0:08:48]} 33. Nxd3 {[%emt 0:00:13]} Kd7 {[%emt 0:01:02]} 34. g4 {[%emt 0:00:55]} g5 {[%emt 0:03:02]} 35. Nc1 {[%emt 0:06:55]} Kc6 {[%emt 0:03:15]} 36. Nd3 {[%emt 0:01:19]} Kd7 {[%emt 0:01:04]} 37. Nc5+ {[%emt 0:00:27]} Kc6 {[%emt 0:00:18]} 38. Nd3 {[%emt 0:00:17]} Kd7 {[%emt 0:00:28]} 1/2-1/2